[Event "ETCC Open 2023"]
[Site "Budva"]
[Date "2023.11.13"]
[Round "3.27"]
[White "Adams, Michael"]
[Black "Livaic, Leon"]
[Result "1-0"]
[ECO "C02"]
[WhiteElo "2670"]
[BlackElo "2553"]
[Annotator "TA"]
[PlyCount "139"]
[EventDate "2023.11.10"]
[EventType "team-tourn"]
[EventCountry "MNE"]
[SourceTitle "playchess.com"]
[Source "ChessBase"]
[SourceQuality "1"]
[WhiteTeam "England"]
[BlackTeam "Croatia"]
[WhiteTeamCountry "ENG"]
[BlackTeamCountry "CRO"]
[TimeControl "40/5400+30:1800+30"]

{[%evp 19,139,0,7,0,0,0,0,-20,-8,-16,-10,-35,-27,-37,-29,-44,-45,-51,-58,-52,-52,-50,-52,-67,-64,-56,-58,-58,-23,-38,-23,-31,-22,-27,-20,-31,-17,-39,0,-54,-56,-53,-26,-45,-27,-29,0,0,0,0,0,0,8,8,0,0,3,0,592,602,583,586,546,122,128,157,157,160,160,149,166,158,156,173,183,111,257,239,724,718,655,649,565,551,1316,1237,1506,1449,1465,1388,2069,1929,2060,2196,1995,1868,1753,1752,1547,1342,1341,1341,29965,1098,29977,29978,29980,0,570,0,29980,29981,29981,29982,29982,29983,29982,29983,29986,29987,29990,29991]} 1. e4 {[%emt 0:00:04]} e6 {[%emt 0:00:11]} 2. d4 {[%emt 0:00:06]} d5 {[%emt 0:00:05]} 3. e5 {[%emt 0:00:11]} c5 {[%emt 0:00:07]} 4. c3 {[%emt 0:00:04]} Nc6 {[%emt 0:00:06]} 5. Nf3 {[%emt 0:00:05]} Qb6 {[%emt 0:00:21]} 6. Be2 {[%emt 0:00:43]} cxd4 {[%emt 0:00:31]} 7. cxd4 {[%emt 0:00:09]} Nge7 {[%emt 0:01:01]} 8. Na3 {[%emt 0:00:53]} Nf5 {[%emt 0:00:30]} 9. Nc2 {[%emt 0:00:14]} Bd7 {[%emt 0:00:26]} 10. O-O {[%emt 0:05:18]} Rc8 {[%emt 0:00:26]} 11. Kh1 {[%emt 0:04:19] 11.Bd3 is a critical line. C02: French: Advance Variation.} Na5 {[%emt 0:08:13]} 12. b3 {[%emt 0:12:50]} Bb5 {[%emt 0:03:18] [#]} 13. Bf4 $5 $146 {[%emt 0:03:10][%mdl 8] The position is equal. An interesting novelty.} ({Predecessor:} 13. Bb2 Nc6 14. h3 a6 15. g4 Nfe7 16. Kg2 Ng6 17. Kg3 h5 18. Bxb5 Qxb5 19. Qd2 {1-0 Durarbayli,V (2606)-Meier,G (2621) EU-ch Online KO Final 2020 (1.1)}) 13... Nc6 {[%emt 0:10:30]} 14. Bxb5 {[%emt 0:06:59]} Qxb5 {[%emt 0:00:05]} 15. Rc1 {[%emt 0:00:08]} h6 {[%emt 0:06:18]} 16. h3 {[%emt 0:04:05]} Be7 {[%emt 0:01:24]} 17. Ne3 {[%emt 0:00:33]} Nxe3 {[%emt 0:00:29]} 18. fxe3 {[%emt 0:00:09]} Ba3 {[%emt 0:17:28]} 19. Rc2 {[%emt 0:04:16]} O-O {[%emt 0:00:26]} 20. Nh2 {[%emt 0:15:11][%cal Of4h6]} Ne7 $1 {[%emt 0:01:30]} 21. Rcf2 {[%emt 0:04:11][%cal Of4h6]} Rc1 {[%emt 0:02:44]} 22. Qg4 {[%emt 0:03:17] Threatens to win with Rxc1.} Rxf1+ {[%emt 0:00:44]} 23. Nxf1 {[%emt 0:00:19]} Kh7 {[%emt 0:07:24]} 24. Ng3 {[%emt 0:07:58]} Qd3 {[%emt 0:01:07]} 25. Kh2 {[%emt 0:00:59]} (25. Nh5 {looks sharper.} Qb1+ 26. Kh2 Qg6 27. Qe2) 25... Qg6 {[%emt 0:02:03] Hoping for ...Qxg4.} 26. Qe2 {[%emt 0:03:52]} a6 {[%emt 0:02:52] Against Qb5} 27. h4 {[%emt 0:01:18]} Kg8 {[%emt 0:11:53]} 28. h5 {[%emt 0:01:18]} Qh7 {[%emt 0:00:05]} 29. Nf1 {[%emt 0:05:14]} (29. Rf1 $11) 29... Nc6 $15 {[%emt 0:04:07]} 30. Qg4 {[%emt 0:03:09]} Kh8 {[%emt 0:06:38]} 31. Bg3 {[%emt 0:02:26]} Qd3 {[%emt 0:02:53]} 32. Bh4 {[%emt 0:00:34]} Be7 {[%emt 0:01:16]} 33. Bxe7 {[%emt 0:04:15]} Nxe7 {[%emt 0:00:08]} 34. Qh4 {[%emt 0:01:17]} Nf5 {[%emt 0:06:57]} 35. Qf4 {[%emt 0:00:07]} Qd1 {[%emt 0:02:46]} 36. g4 {[%emt 0:02:37]} Ne7 $1 {[%emt 0:00:03]} 37. Ng3 {[%emt 0:00:12]} Qe1 {[%emt 0:01:07]} 38. Kg2 {[%emt 0:02:56]} f6 $2 {[%emt 0:00:27][%mdl 8192]} (38... Qb1 $11 {and Black is okay.}) 39. exf6 $18 {[%emt 0:02:33]} Rxf6 {[%emt 0:00:04]} 40. Qb8+ {[%emt 0:00:05]} Ng8 {[%emt 0:00:06]} 41. Rxf6 {[%emt 0:30:50]} (41. Rc2 $1 $18 {[%cal Rc2c8] and the rest is easy. White wants to mate with Rc8.} Qb1 42. Rc8 (42. Re2 Rf7 $11)) 41... gxf6 $16 {[%emt 0:30:07]} 42. Qxb7 $18 {[%emt 0:00:00][%mdl 4096] Endgame KQN-KQN} Qd2+ {[%emt 0:00:00]} 43. Kf3 {[%emt 0:00:00] White is more active.} Qd1+ {[%emt 0:00:00] [#]} 44. Kf2 $1 {[%emt 0:00:00]} (44. Kf4 e5+ 45. dxe5 fxe5+ 46. Kxe5 Qxg4 47. Kxd5 Qxg3 48. Qxa6 Qf3+ 49. Kd4 Qxh5 $17) 44... Qd2+ {[%emt 0:00:00]} 45. Ne2 {[%emt 0:00:00]} Qxa2 {[%emt 0:00:00]} 46. Qb6 {[%emt 0:00:00]} e5 {[%emt 0:00:00] [#]} 47. Qb7 {[%emt 0:00:00]} (47. dxe5 $1 $18 fxe5 48. Qe6) 47... Qa5 {[%emt 0:00:00]} (47... exd4 $16 {was called for.} 48. exd4 (48. Qxd5 dxe3+ 49. Kxe3 Qa1 $14) 48... a5) 48. Qd7 {[%emt 0:00:00]} Qb5 $2 {[%emt 0:00:00]} (48... Qb4 49. Qxd5 exd4 50. exd4 (50. Nxd4 Qd2+ 51. Kf3 Qh2 $16) (50. Qxd4 Qxb3 51. Nf4 Qc2+ 52. Kg3 Qc7 $14) 50... Ne7) 49. Qxb5 {[%emt 0:00:00]} axb5 {[%emt 0:00:00] KN-KN} 50. Nc3 {[%emt 0:00:03][%csl LRb5,LRd5]} Ne7 {[%emt 0:00:00]} 51. Nxb5 {[%emt 0:00:21]} Nc6 {[%emt 0:00:00] [#]} 52. e4 $1 {[%emt 0:01:51][%mdl 512]} Nb4 {[%emt 0:01:44]} (52... dxe4 53. d5) 53. exd5 {[%emt 0:00:14]} Nxd5 {[%emt 0:00:03]} 54. dxe5 {[%emt 0:00:11]} fxe5 {[%emt 0:00:03]} 55. Kf3 {[%emt 0:01:42]} Kg7 {[%emt 0:00:10]} 56. Ke4 {[%emt 0:01:07][%csl LRd5,LRe5]} Nf6+ {[%emt 0:00:03]} 57. Kf5 {[%emt 0:00:03]} e4 {[%emt 0:00:12]} 58. Nd4 {[%emt 0:00:40]} e3 {[%emt 0:01:07]} 59. b4 {[%emt 0:00:54]} Kf7 {[%emt 0:00:49]} 60. b5 {[%emt 0:00:21] White threatens b6 and mate.} Ke7 {[%emt 0:00:21]} 61. Ne2 {[%emt 0:01:18]} (61. b6 $142 Ne8 62. Kg6 Nd6 63. g5 Kf8 64. Kxh6 Nf7+ 65. Kg6 Ne5+ 66. Kh7) 61... Nd5 {[%emt 0:01:47]} 62. Kg6 {[%emt 0:00:25]} Nf6 {[%emt 0:00:08]} 63. Kf5 {[%emt 0:00:31]} (63. g5 $142 hxg5 64. b6 (64. Kxg5 Nxh5 65. Kxh5 Kd6 $11) 64... Nd7 65. h6 (65. Kxg5 Nxb6 66. h6 Kf7 $11) 65... Kd8 66. b7 Kc7 67. Kg7 (67. Kxg5 Nf8 $16) 67... g4 68. h7) 63... Nd5 $1 {[%emt 0:00:04]} 64. Kg6 {[%emt 0:00:05]} (64. Ke4 $18 Nf6+ 65. Kf5) 64... Nf6 $1 {[%emt 0:00:03]} 65. g5 {[%emt 0:00:03] White mates.} hxg5 {[%emt 0:00:26]} 66. h6 {[%emt 0:00:05]} ({Stronger than} 66. Kxg5 Nxh5 67. Kg6 (67. Kxh5 Kd6 $11) 67... Kd7 $11) 66... Nd7 {[%emt 0:00:25]} 67. Kg7 {[%emt 0:00:51]} ({Not} 67. Kxg5 Kf7 68. Kf4 Kg6 $18) 67... Nf8 {[%emt 0:00:20]} 68. b6 {[%emt 0:00:25][%cal Bb5b6,Bb6b7][%mdl 32]} Ne6+ {[%emt 0:00:03]} 69. Kg8 {[%emt 0:00:30]} Nf4 {[%emt 0:00:10]} 70. b7 {[%emt 0:00:29] Weighted Error Value: White=0.16 (very precise) /Black=0.44} 1-0

[Event "ETCC Open 2023"]
[Site "Budva"]
[Date "2023.11.13"]
[Round "3.28"]
[White "Bosiocic, Marin"]
[Black "Haria, Ravi"]
[Result "1-0"]
[ECO "D38"]
[WhiteElo "2537"]
[BlackElo "2508"]
[Annotator "RC"]
[PlyCount "133"]
[EventDate "2023.11.10"]
[EventType "team-tourn"]
[EventCountry "MNE"]
[SourceTitle "playchess.com"]
[Source "ChessBase"]
[SourceQuality "1"]
[WhiteTeam "Croatia"]
[BlackTeam "England"]
[WhiteTeamCountry "CRO"]
[BlackTeamCountry "ENG"]
[TimeControl "40/5400+30:1800+30"]

1. d4 {[%emt 0:00:05]} d5 {[%emt 0:03:03]} 2. c4 {[%emt 0:00:36]} e6 {[%emt 0:00:15]} 3. Nf3 {[%emt 0:00:15]} Nf6 {[%emt 0:00:06]} 4. Nc3 {[%emt 0:00:31]} Bb4 {[%emt 0:00:44]} 5. cxd5 {[%emt 0:00:49]} exd5 {[%emt 0:00:10]} 6. Bf4 {[%emt 0:00:35]} Ne4 {[%emt 0:02:34]} 7. Rc1 {[%emt 0:00:41]} Nd7 {[%emt 0:00:06]} 8. Nd2 {[%emt 0:01:12]} Nxc3 {[%emt 0:01:14]} 9. bxc3 {[%emt 0:00:07]} Ba3 {[%emt 0:00:43]} 10. Rb1 {[%emt 0:00:13]} Nb6 {[%emt 0:01:30]} 11. e3 {[%emt 0:00:27]} Bf5 {[%emt 0:04:34]} 12. Rb3 {[%emt 0:00:07]} Bd6 {[%emt 0:00:38]} 13. Qf3 {[%emt 0:00:33]} Be6 {[%emt 0:23:21]} 14. Qg3 {[%emt 0:01:08]} O-O {[%emt 0:00:24]} 15. Bxd6 {[%emt 0:00:13]} cxd6 {[%emt 0:02:53]} 16. Bd3 {[%emt 0:03:17]} Qe7 {[%emt 0:04:48]} 17. O-O {[%emt 0:01:44]} Rac8 {[%emt 0:09:44]} 18. Rfb1 {[%emt 0:16:08]} Rc6 {[%emt 0:09:49]} 19. Ra3 {[%emt 0:03:53]} a6 {[%emt 0:01:50]} 20. Rab3 {[%emt 0:00:59]} Qc7 {[%emt 0:01:44]} 21. h4 {[%emt 0:05:48]} Rb8 {[%emt 0:07:07]} 22. h5 {[%emt 0:06:13]} h6 {[%emt 0:00:57]} 23. f4 {[%emt 0:01:16]} Nc4 {[%emt 0:01:58]} 24. Nf3 {[%emt 0:10:18]} Na5 {[%emt 0:06:19]} 25. f5 {[%emt 0:04:59]} Bxf5 {[%emt 0:00:15]} 26. Bxf5 {[%emt 0:00:11]} Nxb3 {[%emt 0:00:05]} 27. Rxb3 {[%emt 0:00:28]} Re8 {[%emt 0:02:43]} 28. Qe1 {[%emt 0:04:43]} b5 {[%emt 0:01:30]} 29. Qd2 {[%emt 0:01:40]} Qe7 {[%emt 0:00:43]} 30. Kf2 {[%emt 0:00:12]} Rc7 {[%emt 0:01:21]} 31. Bb1 {[%emt 0:05:37]} Qe6 {[%emt 0:05:28]} 32. Qd3 {[%emt 0:01:26]} Kf8 {[%emt 0:00:38]} 33. Ra3 {[%emt 0:02:25]} Rc6 {[%emt 0:00:58]} 34. Rb3 {[%emt 0:00:51]} Rc7 {[%emt 0:00:47]} 35. a4 {[%emt 0:04:04]} bxa4 {[%emt 0:01:49]} 36. Ra3 {[%emt 0:02:24]} Rec8 {[%emt 0:04:21]} 37. Bc2 {[%emt 0:01:37]} Qg4 {[%emt 0:00:41]} 38. Qxa6 {[%emt 0:03:07]} Qxh5 {[%emt 0:00:18]} 39. Qxd6+ {[%emt 0:06:03]} Kg8 {[%emt 0:00:01]} 40. Bd3 {[%emt 0:06:08]} g6 {[%emt 0:01:45]} 41. Qb4 {[%emt 0:33:00]} Rc6 {[%emt 0:03:31]} 42. Qxa4 {[%emt 0:00:00]} Rf6 {[%emt 0:08:12]} 43. Kg3 {[%emt 0:00:00]} Rcc6 {[%emt 0:05:49]} 44. Qa8+ {[%emt 0:00:00]} Kg7 {[%emt 0:00:08]} 45. Qb8 {[%emt 0:00:00]} Rb6 {[%emt 0:01:29]} 46. Qe5 {[%emt 0:00:05]} Qh1 {[%emt 0:00:08]} 47. Ra6 {[%emt 0:00:28]} Rxa6 {[%emt 0:08:30]} 48. Bxa6 {[%emt 0:00:07]} h5 {[%emt 0:00:11]} 49. Kf2 {[%emt 0:01:08]} Qc1 {[%emt 0:01:22]} 50. Kg3 {[%emt 0:01:15]} Qxc3 {[%emt 0:00:54]} 51. Bb7 {[%emt 0:00:27]} h4+ {[%emt 0:03:12]} 52. Kh2 {[%emt 0:00:13]} Qb2 {[%emt 0:01:36]} 53. Bxd5 {[%emt 0:07:14]} Qf2 {[%emt 0:00:11]} 54. e4 {[%emt 0:00:00]} Qf1 {[%emt 0:01:46]} 55. Nxh4 {[%emt 0:00:00]} Kf8 {[%emt 0:00:27]} 56. Qb8+ {[%emt 0:00:00]} Kg7 {[%emt 0:00:22]} 57. Qg3 {[%emt 0:00:00]} Kf8 {[%emt 0:00:40]} 58. Nf3 {[%emt 0:00:00]} Qc1 {[%emt 0:00:20]} 59. Qb8+ {[%emt 0:00:00]} Kg7 {[%emt 0:00:11]} 60. Qe5 {[%emt 0:00:00]} Qh6+ {[%emt 0:00:35]} 61. Kg3 {[%emt 0:00:00]} Qe3 {[%emt 0:00:11]} 62. Bc6 {[%emt 0:00:49]} g5 {[%emt 0:00:39]} 63. Bd7 {[%emt 0:00:22]} Kg6 {[%emt 0:01:05]} 64. Bf5+ {[%emt 0:00:12]} Kg7 {[%emt 0:00:29]} 65. Bg4 {[%emt 0:00:33]} Kg6 {[%emt 0:00:35]} 66. Bh5+ {[%emt 0:01:07]} Kg7 {[%emt 0:00:31]} 67. Qxg5+ {[%emt 0:00:40]} 1-0

[Event "ETCC Open 2023"]
[Site "Budva"]
[Date "2023.11.13"]
[Round "3.29"]
[White "Dragnev, Valentin"]
[Black "Sargissian, Gabriel"]
[Result "1/2-1/2"]
[ECO "C89"]
[WhiteElo "2589"]
[BlackElo "2686"]
[Annotator "TA"]
[PlyCount "60"]
[EventDate "2023.11.10"]
[EventType "team-tourn"]
[EventCountry "MNE"]
[SourceTitle "playchess.com"]
[Source "ChessBase"]
[SourceQuality "1"]
[WhiteTeam "Austria"]
[BlackTeam "Armenia"]
[WhiteTeamCountry "AUT"]
[BlackTeamCountry "ARM"]
[TimeControl "40/5400+30:1800+30"]

{[%evp 26,60,16,16,39,47,40,11,0,0,0,0,144,0,1,0,0,0,0,0,0,0,0,0,6,1,14,17,15,0,0,0,28,0,0,0,31]} 1. e4 {[%emt 0:00:14]} e5 {[%emt 0:00:52]} 2. Nf3 {[%emt 0:00:08]} Nc6 {[%emt 0:00:29]} 3. Bb5 {[%emt 0:00:17][%cal Bf1b5,Bb5a4,Ba4b3][%mdl 32]} a6 {[%emt 0:00:14]} 4. Ba4 {[%emt 0:00:06]} Nf6 {[%emt 0:00:35]} 5. O-O {[%emt 0:00:14]} Be7 {[%emt 0:00:14]} 6. Re1 {[%emt 0:00:21]} b5 {[%emt 0:00:13]} 7. Bb3 {[%emt 0:00:05]} O-O {[%emt 0:00:08]} 8. c3 {[%emt 0:03:18]} d5 {[%emt 0:01:13]} 9. exd5 {[%emt 0:00:06]} Nxd5 {[%emt 0:00:20]} 10. Nxe5 {[%emt 0:00:06]} Nxe5 {[%emt 0:00:12]} 11. Rxe5 {[%emt 0:00:04]} c6 {[%emt 0:01:06]} 12. Re1 {[%emt 0:00:09]} Bd6 {[%emt 0:02:13]} 13. d3 {[%emt 0:00:46]} Bf5 {[%emt 0:01:40]} 14. Qf3 {[%emt 0:00:46]} (14. g3 {simplifies} Re8 15. Be3 Nxe3 16. fxe3 Qc7 17. Rf1) 14... Qh4 {[%emt 0:00:45] C89: Closed Ruy Lopez: Marshall Attack.} 15. g3 {[%emt 0:00:13]} (15. Bxd5 Bxh2+ 16. Kf1 Bg4 $15) 15... Qh3 {[%emt 0:00:26]} 16. Nd2 {[%emt 0:01:33]} Rae8 $1 {[%emt 0:03:31]} 17. Ne4 {[%emt 0:00:51]} Bg4 {[%emt 0:00:39]} 18. Qg2 {[%emt 0:00:07]} Qxg2+ {[%emt 0:01:30]} 19. Kxg2 {[%emt 0:00:02] next h3 is good for White.} f5 $132 {[%emt 0:00:30][%mdl 2048] Black is not keeping still} 20. h3 {[%emt 0:00:42]} Bh5 {[%emt 0:00:27]} ({Resist} 20... fxe4 21. hxg4 exd3 22. Rxe8 Rxe8 23. Be3 $16) 21. Bf4 {[%emt 0:00:11]} ({Wrong is} 21. Bxd5+ $2 cxd5 22. Bf4 Bxf4 $19) 21... Bxf4 {[%emt 0:01:14]} ({Much less strong is} 21... fxe4 22. Bxd6 Rf6 23. dxe4 Bf3+ 24. Kf1 Rxd6 25. exd5 Rxe1+ 26. Rxe1 Bxd5 27. Bxd5+ Rxd5 28. Re6 $16) 22. gxf4 {[%emt 0:00:08] Black must now prevent Bxd5+.} fxe4 {[%emt 0:00:25]} 23. dxe4 {[%emt 0:00:07][%mdl 64] [#] Pin} Bf3+ $1 {[%emt 0:00:44][%mdl 64] Decoy} 24. Kxf3 {[%emt 0:00:06]} Rxf4+ {[%emt 0:00:13]} 25. Kg3 {[%emt 0:00:04]} Rfxe4 {[%emt 0:00:33]} 26. Rxe4 {[%emt 0:00:06]} Rxe4 {[%emt 0:00:06] [#]} 27. Kf3 $5 $146 {[%emt 0:00:35][%mdl 8] An interesting novelty.} ({Predecessor:} 27. a4 Re2 28. axb5 axb5 29. Bxd5+ cxd5 30. Rd1 Rxb2 31. Rxd5 Rb3 32. f3 Rxc3 33. Rxb5 {½-½ Radjabov,T (2758)-Ding,L (2811) FIDE World Cup 2019 (7.1)}) 27... Rf4+ {[%emt 0:05:02]} 28. Kg3 {[%emt 0:00:59] [#] Threatens to win with Bxd5+.} Re4 {[%emt 0:00:14]} 29. Kf3 {[%emt 0:00:37]} Rf4+ {[%emt 0:00:11]} 30. Kg3 {[%emt 0:00:03] Hoping for Bxd5+.} Re4 {[%emt 0:00:15] Weighted Error Value: White=0.06 (flawless) /Black=0.02 (flawless)} 1/2-1/2

[Event "ETCC Open 2023"]
[Site "Budva"]
[Date "2023.11.13"]
[Round "3.30"]
[White "Melkumyan, Hrant"]
[Black "Ragger, Markus"]
[Result "1/2-1/2"]
[ECO "A16"]
[WhiteElo "2650"]
[BlackElo "2615"]
[Annotator "TA"]
[PlyCount "85"]
[EventDate "2023.11.10"]
[EventType "team-tourn"]
[EventCountry "MNE"]
[SourceTitle "playchess.com"]
[Source "ChessBase"]
[SourceQuality "1"]
[WhiteTeam "Armenia"]
[BlackTeam "Austria"]
[WhiteTeamCountry "ARM"]
[BlackTeamCountry "AUT"]
[TimeControl "40/5400+30:1800+30"]

{[%evp 9,85,29,26,26,20,23,39,17,22,21,18,22,27,24,29,0,0,-19,0,0,0,0,0,0,0,0,0,-3,-5,-23,-28,-17,-4,-7,0,0,0,-9,0,0,0,0,14,0,0,0,0,0,0,0,0,0,0,0,0,-8,0,0,0,-8,0,0,0,-8,-8,-8,0,0,0,-8,-2,-2,0,-8,0,-12,0,-13]} 1. Nf3 {[%emt 0:01:14]} Nf6 {[%emt 0:00:02]} 2. c4 {[%emt 0:00:46]} g6 {[%emt 0:00:01]} 3. Nc3 {[%emt 0:01:44]} d5 {[%emt 0:00:03]} 4. cxd5 {[%emt 0:00:26]} Nxd5 {[%emt 0:00:03]} 5. h4 {[%emt 0:08:52]} Bg7 {[%emt 0:00:23]} 6. e4 {[%emt 0:00:20] A16: English Opening: 1...Nf6 with ...d5.} Nxc3 {[%emt 0:00:07]} 7. dxc3 {[%emt 0:00:13]} Qxd1+ {[%emt 0:00:26]} 8. Kxd1 {[%emt 0:00:07] White is slightly better.} Nd7 {[%emt 0:00:26][%cal Bb8d7,Bd7c5,Bc5a4][%mdl 32] The main line 8...Nd7 scores better than 8...Bg4.} 9. Bc4 {[%emt 0:14:32]} Nc5 {[%emt 0:14:27]} 10. Re1 {[%emt 0:01:40]} e5 {[%emt 0:13:18] [#]} 11. b4 $146 {[%emt 0:09:47]} ({Predecessor:} 11. Kc2 Be6 12. Bxe6 Nxe6 13. Be3 f6 14. a4 a5 15. Nd2 Bf8 16. Nc4 Be7 17. g3 {0-1 Raja,R (2364)-Khusenkhojaev,M (2442) Hyderabad op 3rd 2019 (6)}) 11... Be6 {[%emt 0:01:06]} 12. Bf1 {[%emt 0:02:54]} Na4 {[%emt 0:09:24]} 13. Kc2 {[%emt 0:09:54]} Nb6 {[%emt 0:01:41]} 14. a4 {[%emt 0:09:50]} a5 {[%emt 0:02:55]} 15. Be3 {[%emt 0:07:46]} Nc4 {[%emt 0:08:53]} 16. Bxc4 {[%emt 0:02:58]} Bxc4 {[%emt 0:00:04]} 17. Nd2 {[%emt 0:00:09]} Be6 {[%emt 0:00:14]} 18. bxa5 {[%emt 0:02:09]} Rxa5 {[%emt 0:02:35]} 19. Nb3 {[%emt 0:01:11]} Bxb3+ {[%emt 0:03:07]} 20. Kxb3 {[%emt 0:00:04]} Kd7 {[%emt 0:00:05] The position is equal.} 21. c4 {[%emt 0:03:15]} Rha8 {[%emt 0:02:20]} 22. Red1+ {[%emt 0:07:36]} Ke6 {[%emt 0:00:48]} 23. Rd5 {[%emt 0:00:08]} c6 {[%emt 0:03:30]} 24. Rxa5 {[%emt 0:00:04]} Rxa5 $11 {[%emt 0:00:03][%mdl 4096] Endgame KRB-KRB} 25. Rd1 {[%emt 0:00:07] [#] aiming for Rd8.} Bf6 {[%emt 0:05:30] Prevents Rd8} 26. Bb6 {[%emt 0:07:10]} Ra8 {[%emt 0:00:24]} 27. g3 {[%emt 0:00:15]} Be7 {[%emt 0:01:55]} 28. a5 {[%emt 0:01:01]} f5 {[%emt 0:01:42]} 29. exf5+ {[%emt 0:00:22]} gxf5 {[%emt 0:00:06]} 30. Re1 {[%emt 0:02:02]} h5 {[%emt 0:03:35]} 31. Ka4 {[%emt 0:00:41]} Bd6 {[%emt 0:03:55]} 32. Rb1 {[%emt 0:00:56]} Kd7 {[%emt 0:02:19]} 33. Rd1 {[%emt 0:00:24]} Ke6 {[%emt 0:00:11]} 34. Rb1 {[%emt 0:00:03]} Kd7 {[%emt 0:00:09]} 35. Rb2 {[%emt 0:02:47]} (35. Rd1 $5 Ke6 $8 36. Rb1 $11) 35... Rg8 {[%emt 0:12:45]} 36. Be3 {[%emt 0:01:17]} Kc8 {[%emt 0:00:55]} 37. Bg5 {[%emt 0:02:32]} Bc7 {[%emt 0:02:42]} 38. Rd2 {[%emt 0:00:05]} Rg7 {[%emt 0:01:00]} 39. Rd3 {[%emt 0:01:59]} Rd7 {[%emt 0:02:36]} 40. Rf3 {[%emt 0:00:18]} Rf7 {[%emt 0:03:51]} 41. Rd3 {[%emt 0:04:04]} Rd7 {[%emt 0:01:16]} 42. Rf3 {[%emt 0:00:37]} Rf7 {[%emt 0:05:27]} 43. Rd3 {[%emt 0:01:29] Not much happened in this game.   Weighted Error Value: White=0.03 (flawless) /Black=0.03 (flawless)} 1/2-1/2

[Event "ETCC Open 2023"]
[Site "Budva"]
[Date "2023.11.13"]
[Round "3.31"]
[White "Horvath, Dominik"]
[Black "Sargsyan, Shant"]
[Result "1/2-1/2"]
[ECO "C88"]
[WhiteElo "2549"]
[BlackElo "2625"]
[Annotator "TA"]
[PlyCount "61"]
[EventDate "2023.11.10"]
[EventType "team-tourn"]
[EventCountry "MNE"]
[SourceTitle "playchess.com"]
[Source "ChessBase"]
[SourceQuality "1"]
[WhiteTeam "Austria"]
[BlackTeam "Armenia"]
[WhiteTeamCountry "AUT"]
[BlackTeamCountry "ARM"]
[TimeControl "40/5400+30:1800+30"]

{[%evp 19,61,8,14,10,13,11,9,4,9,10,7,0,-3,-7,0,0,0,0,0,-10,-10,-12,-11,-11,-16,-17,-10,-16,-6,-20,-28,-26,-19,-27,-20,-26,0,-15,0,0,0,-23,0,0]} 1. e4 {[%emt 0:00:03]} e5 {[%emt 0:01:30]} 2. Nf3 {[%emt 0:00:06]} Nc6 {[%emt 0:00:14]} 3. Bb5 {[%emt 0:00:06][%cal Bf1b5,Bb5a4,Ba4b3][%mdl 32]} a6 {[%emt 0:00:22]} 4. Ba4 {[%emt 0:00:05]} Nf6 {[%emt 0:00:04]} 5. O-O {[%emt 0:00:07]} Be7 {[%emt 0:00:04]} 6. Re1 {[%emt 0:00:06]} b5 {[%emt 0:00:04]} 7. Bb3 {[%emt 0:00:03]} O-O {[%emt 0:00:04]} 8. a4 {[%emt 0:00:56]} b4 {[%emt 0:00:08]} 9. d4 {[%emt 0:00:42]} d6 {[%emt 0:00:12]} 10. dxe5 {[%emt 0:00:06]} Nxe5 {[%emt 0:00:03]} 11. Nxe5 {[%emt 0:00:09] C88: Closed Ruy Lopez: Anti-Marshall Systems.} dxe5 {[%emt 0:00:05]} 12. Qxd8 {[%emt 0:00:06]} Rxd8 {[%emt 0:00:08]} 13. Nd2 {[%emt 0:00:05]} Bc5 {[%emt 0:00:26]} 14. Nf3 {[%emt 0:00:09]} Ng4 {[%emt 0:00:33] [#]} 15. Bg5 $146 {[%emt 0:00:08]} ({Predecessor:} 15. Be3 Bxe3 16. fxe3 Rd6 17. Rad1 Be6 18. Rxd6 cxd6 19. Rd1 Rd8 20. h3 Nxe3 21. Rd2 Bxb3 22. cxb3 {½-½ Durarbayli,V (2625)-Vitiugov,N (2711) FIDE Grand Swiss 2023 (1)}) 15... Bxf2+ {[%emt 0:11:38]} 16. Kh1 {[%emt 0:00:06]} Re8 {[%emt 0:17:57]} 17. Rf1 {[%emt 0:00:06]} Bc5 {[%emt 0:05:46] ...Nf2+ is the strong threat.} 18. h3 {[%emt 0:00:16][%cal Ob3d5] [#] aiming for Bd5!} Nf6 {[%emt 0:04:33]} 19. Bxf6 {[%emt 0:00:46]} gxf6 {[%emt 0:00:03]} 20. Ng5 {[%emt 0:00:06]} Kg7 {[%emt 0:56:36]} (20... fxg5 $2 21. Bxf7+ (21. Rxf7 $2 {too greedy.} Be6 $19) 21... Kf8 22. Bd5+ (22. Bxe8+ $2 {is the wrong capture.} Kxe8 23. Rf3 Be7 $19) 22... Ke7 23. Bxa8 $18 (23. Rf7+ Kd6 $14)) 21. Bxf7 {[%emt 0:00:08]} Rd8 {[%emt 0:00:00][%cal Be8d8,Bd8d2,Bd2c2][%mdl 32]} 22. Ne6+ {[%emt 0:00:26]} Bxe6 $1 {[%emt 0:00:00]} 23. Bxe6 {[%emt 0:00:04]} Rd2 {[%emt 0:00:00]} 24. Rf3 {[%emt 0:11:51]} Rxc2 {[%emt 0:00:00]} 25. Raf1 {[%emt 0:00:44]} Rf8 {[%emt 0:00:00]} 26. Rg3+ {[%emt 0:01:57]} Kh8 {[%emt 0:00:00]} 27. b3 {[%emt 0:24:50]} a5 {[%emt 0:00:00]} 28. Rgf3 {[%emt 0:11:57]} Kg7 {[%emt 0:00:00]} 29. Rg3+ {[%emt 0:00:05]} Kh8 {[%emt 0:00:00]} 30. Rgf3 {[%emt 0:00:04]} Kg7 {[%emt 0:00:00]} 31. Rg3+ {[%emt 0:00:06] A balanced but interesting game.   Weighted Error Value: White=0.03 (flawless) /Black=0.04 (flawless)} 1/2-1/2